fUSD/lending_fUSD_20260515
["ID","MTS","AMOUNT","RATE_DAILY","PERIOD"]
[422339118,1778849431000,-1200.0,0.00014495,2]
[422339102,1778849431000,-2000.0,0.00013558,2]
[422339109,1778849431000,-1114.76,0.00013835,2]
[422339116,1778849431000,-550.38,0.0001432,2]
[422339111,1778849431000,-166.66,0.00013875,2]
[422339119,1778849431000,-350.0,0.00014496,2]
[422339117,1778849431000,-166.66,0.00014404,2]
[422339134,1778849431000,-347.0,0.00014504,2]
[422339133,1778849431000,-1254.41808677,0.00014504,2]
[422339131,1778849431000,-24999.99,0.00014504,2]
[422339130,1778849431000,-813.42,0.00014504,2]
[422339128,1778849431000,-3221.22,0.00014504,2]
[422339129,1778849431000,-999.99,0.00014504,2]
[422339125,1778849431000,-991.65,0.00014504,2]
[422339132,1778849431000,-34489.04928373,0.00014504,2]
[422339127,1778849431000,-150.99,0.00014504,2]
[422339121,1778849431000,-2493.1,0.00014497,2]
[422339126,1778849431000,-9999.99,0.00014504,2]
[422339122,1778849431000,-1487.49,0.00014504,2]
[422339120,1778849431000,-915.48,0.00014497,2]
[422339123,1778849431000,-299.99,0.00014504,2]
[422339124,1778849431000,-4999.99,0.00014504,2]
[422339146,1778849437000,-1141.8503,0.00014504,2]
[422339147,1778849438000,-455.01817229,0.00014504,2]
[422339148,1778849438000,-4435.52882948,0.00014504,2]
[422339149,1778849438000,-779.9293979,0.00014504,2]
[422339747,1778849442000,-569.77769546,0.00014899,2]
[422339730,1778849442000,-569.77769546,0.00014899,2]
[422339734,1778849442000,-569.77769546,0.00014899,2]
[422339732,1778849442000,-569.77769546,0.00014899,2]
[422339743,1778849442000,-569.77769546,0.00014899,2]
[422339738,1778849442000,-569.77769546,0.00014899,2]
[422339741,1778849442000,-569.77769546,0.00014899,2]
[422339728,1778849442000,-569.77769546,0.00014899,2]
[422339745,1778849442000,-569.77769546,0.00014899,2]
[422339750,1778849442000,-569.77769546,0.00014899,2]
[422339770,1778849442000,-569.77769546,0.00014899,2]
[422339754,1778849442000,-569.77769546,0.00014899,2]
[422339756,1778849442000,-569.77769546,0.00014899,2]
[422339758,1778849442000,-569.77769546,0.00014899,2]
[422339760,1778849442000,-569.77769546,0.00014899,2]
[422339772,1778849442000,-569.77769546,0.00014899,2]
[422339764,1778849442000,-569.77769546,0.00014899,2]
[422339766,1778849442000,-569.77769546,0.00014899,2]
[422339768,1778849442000,-569.77769546,0.00014899,2]
[422339736,1778849442000,-569.77769546,0.00014899,2]
[422339769,1778849442000,-569.77769546,0.00014899,2]
[422339752,1778849442000,-569.77769546,0.00014899,2]
[422339726,1778849442000,-569.77769546,0.00014899,2]
[422339702,1778849442000,-1000.0,0.00014888,2]
[422339721,1778849442000,-569.77769546,0.00014899,2]
[422339771,1778849442000,-569.77769546,0.00014899,2]
[422339674,1778849442000,-5951.85980944,0.00014504,2]
[422339676,1778849442000,-49631.99612039,0.00014504,2]
[422339678,1778849442000,-9999.99,0.00014504,2]
[422339685,1778849442000,-350.0,0.0001466,2]
[422339681,1778849442000,-166.86,0.00014507,2]
[422339683,1778849442000,-166.66,0.00014581,2]
[422339687,1778849442000,-550.38,0.00014669,2]
[422339700,1778849442000,-160.0,0.00014876,2]
[422339698,1778849442000,-1075.65532182,0.000148,2]
[422339719,1778849442000,-569.77769546,0.00014899,2]
[422339691,1778849442000,-165911.6613,0.00014789,2]
[422339693,1778849442000,-1308.39854556,0.000148,2]
[422339695,1778849442000,-5000.0,0.000148,2]
[422339704,1778849442000,-150.0,0.00014888,2]
[422339706,1778849442000,-689.61332266,0.00014888,2]
[422339708,1778849442000,-37380.00096984,0.00014889,2]
[422339710,1778849442000,-500.0,0.00014899,2]
[422339713,1778849442000,-500.0,0.00014899,2]
[422339715,1778849442000,-500.0,0.00014899,2]
[422339723,1778849442000,-569.77769546,0.00014899,2]
[422339717,1778849442000,-500.0,0.00014899,2]
[422339689,1778849442000,-214.997284,0.00014695,2]
[422339774,1778849442000,-569.77769546,0.00014899,2]
[422339762,1778849442000,-569.77769546,0.00014899,2]
[422339776,1778849442000,-569.77769546,0.00014899,2]
[422339826,1778849442000,-569.77769546,0.00014899,2]
[422339849,1778849442000,-569.77769547,0.00014899,2]
[422339838,1778849442000,-569.77769547,0.00014899,2]
[422339845,1778849442000,-569.77769547,0.00014899,2]
[422339841,1778849442000,-569.77769547,0.00014899,2]
[422339850,1778849442000,-569.77769547,0.00014899,2]
[422339843,1778849442000,-569.77769547,0.00014899,2]
[422339847,1778849442000,-569.77769547,0.00014899,2]
[422339778,1778849442000,-569.77769546,0.00014899,2]
[422339863,1778849442000,-569.77769547,0.00014899,2]
[422339834,1778849442000,-569.77769547,0.00014899,2]
[422339853,1778849442000,-569.77769547,0.00014899,2]
[422339857,1778849442000,-569.77769547,0.00014899,2]
[422339860,1778849442000,-569.77769547,0.00014899,2]
[422339866,1778849442000,-569.77769547,0.00014899,2]
[422339868,1778849442000,-569.77769547,0.00014899,2]
[422339878,1778849442000,-569.77769547,0.00014899,2]
[422339870,1778849442000,-569.77769547,0.00014899,2]
[422339872,1778849442000,-569.77769547,0.00014899,2]
[422339874,1778849442000,-569.77769547,0.00014899,2]
[422339876,1778849442000,-569.77769547,0.00014899,2]
[422339881,1778849442000,-569.77769547,0.00014899,2]
[422339855,1778849442000,-569.77769547,0.00014899,2]
[422339830,1778849442000,-569.77769546,0.00014899,2]
[422339861,1778849442000,-569.77769547,0.00014899,2]
[422339832,1778849442000,-271.1999,0.00014899,2]
[422339828,1778849442000,-569.77769546,0.00014899,2]
[422339783,1778849442000,-569.77769546,0.00014899,2]
[422339787,1778849442000,-569.77769546,0.00014899,2]
[422339785,1778849442000,-569.77769546,0.00014899,2]
[422339796,1778849442000,-569.77769546,0.00014899,2]
[422339791,1778849442000,-569.77769546,0.00014899,2]
[422339883,1778849442000,-569.77769547,0.00014899,2]
[422339789,1778849442000,-569.77769546,0.00014899,2]
[422339793,1778849442000,-569.77769546,0.00014899,2]
[422339798,1778849442000,-569.77769546,0.00014899,2]
[422339800,1778849442000,-569.77769546,0.00014899,2]
[422339780,1778849442000,-569.77769546,0.00014899,2]
[422339804,1778849442000,-569.77769546,0.00014899,2]
[422339802,1778849442000,-569.77769546,0.00014899,2]
[422339836,1778849442000,-569.77769547,0.00014899,2]
[422339824,1778849442000,-569.77769546,0.00014899,2]
[422339817,1778849442000,-569.77769546,0.00014899,2]
[422339819,1778849442000,-569.77769546,0.00014899,2]
[422339822,1778849442000,-569.77769546,0.00014899,2]
[422339813,1778849442000,-569.77769546,0.00014899,2]
[422339810,1778849442000,-569.77769546,0.00014899,2]
[422339806,1778849442000,-569.77769546,0.00014899,2]
[422339808,1778849442000,-569.77769546,0.00014899,2]
[422339815,1778849442000,-569.77769546,0.00014899,2]
[422339890,1778849443000,-569.77769547,0.00014899,2]
[422339887,1778849443000,-569.77769547,0.00014899,2]
[422339885,1778849443000,-569.77769547,0.00014899,2]
[422339900,1778849443000,-569.77769547,0.00014899,2]
[422339894,1778849443000,-569.77769547,0.00014899,2]
[422339891,1778849443000,-569.77769547,0.00014899,2]
[422339902,1778849443000,-569.77769547,0.00014899,2]
[422339896,1778849443000,-569.77769547,0.00014899,2]
[422339915,1778849443000,-569.77769544,0.00014899,2]
[422339904,1778849443000,-569.77769547,0.00014899,2]
[422339907,1778849443000,-254.18339889,0.00014899,2]
[422339911,1778849443000,-500.0,0.00014899,2]
[422339909,1778849443000,-174.29952816,0.00014899,2]
[422339913,1778849443000,-377.51136467,0.00014899,2]
[422339917,1778849443000,-569.77769544,0.00014899,2]
[422339919,1778849443000,-582885.88715377,0.000149,2]
[422339932,1778849443000,-3287.0,0.000149,2]
[422339898,1778849443000,-569.77769547,0.00014899,2]
[422340265,1778849445000,-8036.44957111,0.000149,2]
[422340299,1778849446000,-7580.86741513,0.000149,2]
[422340307,1778849446000,-605.53870129,0.000149,2]
[422340310,1778849446000,-833.036831,0.000149,2]
[422340317,1778849446000,-845.0235,0.000149,2]
[422340312,1778849446000,-2430.59892602,0.000149,2]
[422340321,1778849446000,-279.458431,0.000149,2]
[422340314,1778849446000,-1401.99705,0.000149,2]
[422340319,1778849446000,-1778.649395,0.000149,2]
[422340507,1778850368000,166.24,0.0002764,120]
[422340508,1778850469000,500.0,0.0003013,120]
[422340509,1778850565000,562.79649549,0.00012943,21]
[422340515,1778850631000,-300.0,0.00010699,2]
[422340516,1778850631000,-1200.0,0.00010699,2]
[422340514,1778850631000,-1200.0,0.00010699,2]
[422340558,1778850632000,-1635.17726663,0.00012946,2]
[422340557,1778850632000,-587.0,0.00012928,2]
[422340553,1778850632000,-9999.99,0.00012893,2]
[422340555,1778850632000,-6448.25,0.00012893,2]
[422340552,1778850632000,-363.75,0.00012893,2]
[422340559,1778850632000,-715.82273337,0.00012946,2]
[422340550,1778850632000,-16410.59,0.00012893,2]
[422340551,1778850632000,-1150.83,0.00012893,2]
[422340554,1778850632000,-150.99,0.00012893,2]
[422340549,1778850632000,-999.99,0.00012893,2]
[422340548,1778850632000,-9999.99,0.00012893,2]
[422340556,1778850632000,-1680.0,0.00012928,2]
[422340561,1778850632000,-4148.63985514,0.00013,5]
[422340570,1778850632000,-150.0,0.00013488,2]
[422340568,1778850632000,-150.0,0.00013488,2]
[422340566,1778850632000,-150.0,0.00013488,2]
[422340546,1778850632000,-340.59,0.00012893,2]
[422340563,1778850632000,-8917.13389732,0.00013188,2]
[422340574,1778850632000,-150.0,0.00013488,2]
[422340565,1778850632000,-150.0,0.00013488,2]
[422340564,1778850632000,-431.9,0.00013259,2]
[422340562,1778850632000,-5410.67248723,0.0001305,2]
[422340572,1778850632000,-150.0,0.00013488,2]
[422340567,1778850632000,-150.0,0.00013488,2]
[422340576,1778850632000,-1000.0,0.000135,2]
[422340590,1778850632000,-150.0,0.00013628,2]
[422340560,1778850632000,-1000.0,0.00012958,2]
[422340543,1778850632000,-5784.18078779,0.00012893,2]
[422340540,1778850632000,-166.24,0.00012846,2]
[422340547,1778850632000,-299.99,0.00012893,2]
[422340588,1778850632000,-431.9,0.0001359,2]
[422340517,1778850632000,-52756.13982888,0.000107,2]
[422340519,1778850632000,-150.0,0.00010806,2]
[422340518,1778850632000,-185.45219776,0.00010706,2]
[422340523,1778850632000,-1680.0,0.00011761,2]
[422340525,1778850632000,-1935.5366806,0.00011769,2]
[422340520,1778850632000,-150.0,0.00010913,2]
[422340524,1778850632000,-420.0,0.00011761,2]
[422340522,1778850632000,-171.05,0.00011693,2]
[422340521,1778850632000,-193.76,0.00011235,2]
[422340526,1778850632000,-450.11154394,0.00011769,2]
[422340528,1778850632000,-150.0,0.00011817,2]
[422340535,1778850632000,-637.06,0.00012386,2]
[422340527,1778850632000,-1680.0,0.00011769,2]
[422340529,1778850632000,-8917.13389737,0.00011818,2]
[422340530,1778850632000,-103559.05541832,0.000119,2]
[422340536,1778850632000,-8917.13389732,0.00012503,2]
[422340533,1778850632000,-150.0,0.00012203,2]
[422340532,1778850632000,-8917.13389732,0.0001216,2]
[422340531,1778850632000,-208.38824723,0.00011961,2]
[422340534,1778850632000,-500.0,0.00012267,2]
[422340537,1778850632000,-2000.0,0.00012766,2]
[422340539,1778850632000,-8917.13389732,0.00012845,2]
[422340538,1778850632000,-166.54,0.00012777,2]
[422340541,1778850632000,-255.0,0.00012892,2]
[422340542,1778850632000,-705.48,0.00012893,2]
[422340544,1778850632000,-3945.6348658,0.00012893,2]
[422340545,1778850632000,-5935.24434641,0.00012893,2]
[422340592,1778850632000,-171.05,0.00013642,2]
[422340628,1778850632000,-150.0,0.00013909,2]
[422340585,1778850632000,-150.0,0.00013581,2]
[422340633,1778850632000,-150.0,0.00013987,2]
[422340637,1778850632000,-150.0,0.00014003,2]
[422340640,1778850632000,-433.0,0.00014062,2]
[422340649,1778850632000,-150.0,0.0001419,2]
[422340644,1778850632000,-174.999535,0.00014116,2]
[422340650,1778850632000,-221.0,0.0001421,2]
[422340641,1778850632000,-500.0,0.00014082,2]
[422340651,1778850632000,-8917.13389732,0.00014215,2]
[422340642,1778850632000,-150.0,0.00014096,2]
[422340645,1778850632000,-871.628342,0.00014116,2]
[422340643,1778850632000,-166.66,0.0001411,2]
[422340647,1778850632000,-292.689131,0.00014116,2]
[422340646,1778850632000,-1513.962941,0.00014116,2]
[422340648,1778850632000,-150.0,0.00014143,2]
[422340661,1778850632000,-150.76346064,0.00014247,21]
[422340652,1778850632000,-214.997284,0.00014215,2]
[422340660,1778850632000,-166.66,0.00014247,2]
[422340659,1778850632000,-2351.0,0.0001424,2]
[422340663,1778850632000,-150.0,0.00014284,2]
[422340662,1778850632000,-431.9,0.00014253,2]
[422340653,1778850632000,-500.0,0.00014236,2]
[422340654,1778850632000,-150.0,0.00014237,2]
[422340656,1778850632000,-150.0,0.00014237,2]
[422340657,1778850632000,-150.0,0.00014237,2]
[422340655,1778850632000,-150.0,0.00014237,2]
[422340664,1778850632000,-36730.6264299,0.00014303,2]
[422340594,1778850632000,-150.0,0.00013675,2]
[422340632,1778850632000,-166.66,0.00013973,2]
[422340636,1778850632000,-5779.33,0.0001399,2]
[422340658,1778850632000,-150.0,0.00014237,2]
[422340634,1778850632000,-150.0,0.00013987,2]
[422340635,1778850632000,-4092.69037655,0.0001399,2]
[422340582,1778850632000,-500.0,0.00013535,2]
[422340580,1778850632000,-150.0,0.00013535,2]
[422340578,1778850632000,-8917.13389732,0.0001353,2]
[422340596,1778850632000,-150.0,0.00013675,2]
[422340598,1778850632000,-166.66,0.00013699,2]
[422340600,1778850632000,-200.0,0.00013699,2]
[422340602,1778850632000,-782.09,0.00013699,2]
[422340606,1778850632000,-2500.0,0.00013699,2]
[422340604,1778850632000,-156.41,0.00013699,2]
[422340608,1778850632000,-150.0,0.00013722,2]
[422340610,1778850632000,-150.0,0.00013737,2]
[422340612,1778850632000,-150.0,0.00013737,2]
[422340614,1778850632000,-150.0,0.00013769,2]
[422340638,1778850632000,-150.0,0.0001405,2]
[422340618,1778850632000,-150.0,0.00013815,2]
[422340620,1778850632000,-166.66,0.00013836,2]
[422340624,1778850632000,-150.0,0.00013862,2]
[422340625,1778850632000,-150.0,0.00013862,2]
[422340626,1778850632000,-500.0,0.00013872,2]
[422340622,1778850632000,-159.67,0.0001386,2]
[422340665,1778850632000,-7127.41122331,0.00014304,2]
[422340616,1778850632000,-500.0,0.00013808,2]
[422340639,1778850632000,-150.0,0.0001405,2]
[422340627,1778850632000,-8917.13389732,0.00013873,2]
[422340629,1778850632000,-431.9,0.00013922,2]
[422340631,1778850632000,-150.0,0.00013956,2]
[422340630,1778850632000,-167.0,0.00013952,2]
[422340669,1778850633000,-150.0,0.00014331,2]
[422340668,1778850633000,-5000.0,0.00014304,2]
[422340673,1778850633000,-24037.22287968,0.00014369,2]
[422340671,1778850633000,-500.0,0.00014356,2]
[422340672,1778850633000,-2000.0,0.00014361,2]
[422340666,1778850633000,-10631.7836,0.00014304,2]
[422340670,1778850633000,-380.32384101,0.00014342,2]
[422340667,1778850633000,-2000.0,0.00014304,2]
[422340720,1778850638000,-797.07111326,0.00014402,2]
[422340729,1778850638000,-797.07111326,0.00014402,2]
[422340731,1778850638000,-797.07111326,0.00014402,2]
[422340733,1778850638000,-797.07111326,0.00014402,2]
[422340737,1778850638000,-797.07111326,0.00014402,2]
[422340735,1778850638000,-797.07111326,0.00014402,2]
[422340739,1778850638000,-797.07111326,0.00014402,2]
[422340748,1778850638000,-797.07111326,0.00014402,2]
[422340752,1778850638000,-797.07111326,0.00014402,2]
[422340741,1778850638000,-797.07111326,0.00014402,2]
[422340743,1778850638000,-797.07111326,0.00014402,2]
[422340746,1778850638000,-797.07111326,0.00014402,2]
[422340754,1778850638000,-797.07111326,0.00014402,2]
[422340756,1778850638000,-797.07111326,0.00014402,2]
[422340758,1778850638000,-797.07111326,0.00014402,2]
[422340760,1778850638000,-797.07111326,0.00014402,2]
[422340762,1778850638000,-797.07111326,0.00014402,2]
[422340775,1778850638000,-797.07111326,0.00014402,2]
[422340776,1778850638000,-797.07111326,0.00014402,2]
[422340722,1778850638000,-797.07111326,0.00014402,2]
[422340750,1778850638000,-797.07111326,0.00014402,2]
[422340727,1778850638000,-797.07111326,0.00014402,2]
[422340691,1778850638000,-667.65928579,0.00014369,2]
[422340714,1778850638000,-797.07111326,0.00014402,2]
[422340764,1778850638000,-797.07111326,0.00014402,2]
[422340688,1778850638000,-2340.47392579,0.00014369,2]
[422340689,1778850638000,-1381.0668498,0.00014369,2]
[422340690,1778850638000,-2085.0522045,0.00014369,2]
[422340695,1778850638000,-37380.00096984,0.00014393,2]
[422340693,1778850638000,-150.0,0.00014377,2]
[422340696,1778850638000,-1023.13150078,0.00014394,2]
[422340692,1778850638000,-6219.15128428,0.00014369,2]
[422340694,1778850638000,-166.66,0.00014384,2]
[422340697,1778850638000,-1308.39854556,0.000144,2]
[422340718,1778850638000,-797.07111326,0.00014402,2]
[422340701,1778850638000,-500.0,0.00014402,2]
[422340702,1778850638000,-271.1999,0.00014402,2]
[422340699,1778850638000,-174.29952816,0.00014402,2]
[422340703,1778850638000,-377.51136467,0.00014402,2]
[422340705,1778850638000,-797.07111326,0.00014402,2]
[422340698,1778850638000,-254.18339889,0.00014402,2]
[422340707,1778850638000,-797.07111326,0.00014402,2]
[422340709,1778850638000,-797.07111326,0.00014402,2]
[422340711,1778850638000,-797.07111326,0.00014402,2]
[422340724,1778850638000,-797.07111326,0.00014402,2]
[422340716,1778850638000,-797.07111326,0.00014402,2]
[422340700,1778850638000,-500.0,0.00014402,2]
[422340781,1778850638000,-797.07111326,0.00014402,2]
[422340777,1778850638000,-797.07111326,0.00014402,2]
[422340770,1778850638000,-797.07111326,0.00014402,2]
[422340807,1778850638000,-782.5789112,0.00014402,2]
[422340813,1778850638000,-782.5789112,0.00014402,2]
[422340821,1778850638000,-782.5789112,0.00014402,2]
[422340822,1778850638000,-782.5789112,0.00014402,2]
[422340823,1778850638000,-782.5789112,0.00014402,2]
[422340817,1778850638000,-782.5789112,0.00014402,2]
[422340814,1778850638000,-782.5789112,0.00014402,2]
[422340819,1778850638000,-782.5789112,0.00014402,2]
[422340818,1778850638000,-782.5789112,0.00014402,2]
[422340816,1778850638000,-782.5789112,0.00014402,2]
[422340812,1778850638000,-782.5789112,0.00014402,2]
[422340815,1778850638000,-782.5789112,0.00014402,2]
[422340826,1778850638000,-782.5789112,0.00014402,2]
[422340827,1778850638000,-782.5789112,0.00014402,2]
[422340824,1778850638000,-782.5789112,0.00014402,2]
[422340825,1778850638000,-782.5789112,0.00014402,2]
[422340828,1778850638000,-782.5789112,0.00014402,2]
[422340829,1778850638000,-782.5789112,0.00014402,2]
[422340830,1778850638000,-782.5789112,0.00014402,2]
[422340831,1778850638000,-782.5789112,0.00014402,2]
[422340772,1778850638000,-797.07111326,0.00014402,2]
[422340808,1778850638000,-782.5789112,0.00014402,2]
[422340805,1778850638000,-797.07111326,0.00014402,2]
[422340820,1778850638000,-782.5789112,0.00014402,2]
[422340810,1778850638000,-782.5789112,0.00014402,2]
[422340773,1778850638000,-797.07111326,0.00014402,2]
[422340804,1778850638000,-797.07111326,0.00014402,2]
[422340768,1778850638000,-797.07111326,0.00014402,2]
[422340779,1778850638000,-797.07111326,0.00014402,2]
[422340774,1778850638000,-797.07111326,0.00014402,2]
[422340766,1778850638000,-797.07111326,0.00014402,2]
[422340793,1778850638000,-797.07111326,0.00014402,2]
[422340783,1778850638000,-797.07111326,0.00014402,2]
[422340785,1778850638000,-797.07111326,0.00014402,2]
[422340795,1778850638000,-797.07111326,0.00014402,2]
[422340787,1778850638000,-797.07111326,0.00014402,2]
[422340797,1778850638000,-797.07111326,0.00014402,2]
[422340809,1778850638000,-782.5789112,0.00014402,2]
[422340806,1778850638000,-797.07111326,0.00014402,2]
[422340789,1778850638000,-797.07111326,0.00014402,2]
[422340803,1778850638000,-797.07111326,0.00014402,2]
[422340802,1778850638000,-797.07111326,0.00014402,2]
[422340801,1778850638000,-797.07111326,0.00014402,2]
[422340811,1778850638000,-782.5789112,0.00014402,2]
[422340800,1778850638000,-797.07111326,0.00014402,2]
[422340791,1778850638000,-797.07111326,0.00014402,2]
[422340798,1778850638000,-797.07111326,0.00014402,2]
[422340799,1778850638000,-797.07111326,0.00014402,2]
[422340869,1778850639000,-500.0,0.00014404,2]
[422340872,1778850639000,-500.0,0.00014404,2]
[422340873,1778850639000,-500.0,0.00014404,2]
[422340874,1778850639000,-500.0,0.00014404,2]
[422340868,1778850639000,-500.0,0.00014404,2]
[422340891,1778850639000,-8917.13389732,0.00014558,2]
[422340859,1778850639000,-500.0,0.00014404,2]
[422340871,1778850639000,-500.0,0.00014404,2]
[422340870,1778850639000,-500.0,0.00014404,2]
[422340861,1778850639000,-500.0,0.00014404,2]
[422340879,1778850639000,-150.0,0.00014424,2]
[422340867,1778850639000,-500.0,0.00014404,2]
[422340880,1778850639000,-159.03342442,0.00014435,2]
[422340887,1778850639000,-36730.62642984,0.00014502,2]
[422340877,1778850639000,-350.0,0.0001442,2]
[422340875,1778850639000,-500.0,0.00014404,2]
[422340878,1778850639000,-150.0,0.00014424,2]
[422340881,1778850639000,-36730.62642984,0.00014436,2]
[422340884,1778850639000,-150.0,0.00014487,2]
[422340885,1778850639000,-150.0,0.00014487,2]
[422340882,1778850639000,-350.0,0.00014462,2]
[422340886,1778850639000,-1308.39854553,0.00014492,2]
[422340883,1778850639000,-150.0,0.00014471,2]
[422340888,1778850639000,-5000.0,0.0001451,2]
[422340890,1778850639000,-653.65084534,0.00014542,2]
[422340892,1778850639000,-150.0,0.00014565,2]
[422340860,1778850639000,-500.0,0.00014404,2]
[422340876,1778850639000,-1164868.4959,0.00014404,2]
[422340857,1778850639000,-500.0,0.00014404,2]
[422340835,1778850639000,-782.5789112,0.00014402,2]
[422340864,1778850639000,-500.0,0.00014404,2]
[422340833,1778850639000,-782.5789112,0.00014402,2]
[422340832,1778850639000,-782.5789112,0.00014402,2]
[422340834,1778850639000,-782.5789112,0.00014402,2]
[422340836,1778850639000,-817.36019614,0.00014402,2]
[422340837,1778850639000,-817.36019614,0.00014402,2]
[422340839,1778850639000,-817.36019614,0.00014402,2]
[422340840,1778850639000,-500.0,0.00014403,2]
[422340838,1778850639000,-817.36019614,0.00014402,2]
[422340841,1778850639000,-329.39154396,0.00014403,2]
[422340850,1778850639000,-550.53799519,0.00014403,2]
[422340851,1778850639000,-500.0,0.00014403,2]
[422340845,1778850639000,-500.0,0.00014403,2]
[422340849,1778850639000,-500.0,0.00014403,2]
[422340865,1778850639000,-500.0,0.00014404,2]
[422340852,1778850639000,-500.0,0.00014403,2]
[422340853,1778850639000,-500.0,0.00014403,2]
[422340847,1778850639000,-500.0,0.00014403,2]
[422340842,1778850639000,-500.0,0.00014403,2]
[422340844,1778850639000,-500.0,0.00014403,2]
[422340843,1778850639000,-250.8908796,0.00014403,2]
[422340848,1778850639000,-191.74716493,0.00014403,2]
[422340854,1778850639000,-500.0,0.00014404,2]
[422340863,1778850639000,-500.0,0.00014404,2]
[422340856,1778850639000,-500.0,0.00014404,2]
[422340855,1778850639000,-500.0,0.00014404,2]
[422340862,1778850639000,-500.0,0.00014404,2]
[422340858,1778850639000,-603.34873986,0.00014404,2]
[422340866,1778850639000,-500.0,0.00014404,2]
[422340846,1778850639000,-500.0,0.00014403,2]
[422340893,1778850639000,-36730.62642984,0.00014568,2]
[422340921,1778850639000,-500.0,0.00014788,2]
[422340895,1778850639000,-431.9,0.00014585,2]
[422340924,1778850639000,-150.0,0.00014799,2]
[422340927,1778850639000,-307.83906018,0.00014825,2]
[422340928,1778850639000,-36730.62642984,0.00014834,2]
[422340925,1778850639000,-150.0,0.00014799,2]
[422340929,1778850639000,-1023.13150078,0.00014839,2]
[422340932,1778850639000,-500.0,0.00014848,2]
[422340935,1778850639000,-200927.1204758,0.00014849,2]
[422340934,1778850639000,-66111.6768616,0.00014849,2]
[422340936,1778850639000,-196687.1941961,0.00014849,2]
[422340937,1778850639000,-73600.1548148,0.00014849,2]
[422340939,1778850639000,-4677.2853086,0.00014849,2]
[422340938,1778850639000,-235320.9302803,0.00014849,2]
[422340946,1778850639000,-159.265644,0.00014849,2]
[422340926,1778850639000,-2268.02684139,0.00014825,2]
[422340940,1778850639000,-17544.2989671,0.00014849,2]
[422340942,1778850639000,-159.265644,0.00014849,2]
[422340945,1778850639000,-209.600876,0.00014849,2]
[422340943,1778850639000,-159.265644,0.00014849,2]
[422340941,1778850639000,-745718.6546818,0.00014849,2]
[422340948,1778850639000,-209.600876,0.00014849,2]
[422340947,1778850639000,-209.600876,0.00014849,2]
[422340951,1778850639000,-304.753055,0.00014849,2]
[422340952,1778850639000,-304.753055,0.00014849,2]
[422340949,1778850639000,-209.600876,0.00014849,2]
[422340950,1778850639000,-304.753055,0.00014849,2]
[422340957,1778850639000,-1308.39854553,0.00014858,2]
[422340955,1778850639000,-151.0,0.00014849,2]
[422340889,1778850639000,-150.0,0.00014518,2]
[422340944,1778850639000,-159.265644,0.00014849,2]
[422340933,1778850639000,-500.0,0.00014848,2]
[422340953,1778850639000,-304.753055,0.00014849,2]
[422340931,1778850639000,-500.0,0.00014848,2]
[422340923,1778850639000,-799287.941,0.00014789,2]
[422340905,1778850639000,-226.20363309,0.0001472,2]
[422340906,1778850639000,-150.0,0.00014737,2]
[422340897,1778850639000,-150.0,0.00014612,2]
[422340899,1778850639000,-36730.62642984,0.00014635,2]
[422340896,1778850639000,-150.0,0.00014612,2]
[422340898,1778850639000,-500.0,0.0001463,2]
[422340894,1778850639000,-1308.39854553,0.00014583,2]
[422340904,1778850639000,-150.0,0.00014705,2]
[422340902,1778850639000,-2676.0121,0.00014689,2]
[422340903,1778850639000,-36730.62642984,0.00014701,2]
[422340901,1778850639000,-1308.39854553,0.00014675,2]
[422340907,1778850639000,-150.0,0.00014737,2]
[422340910,1778850639000,-307.83906019,0.00014749,2]
[422340900,1778850639000,-150.0,0.00014658,2]
[422340908,1778850639000,-157.99859497,0.00014749,2]
[422340909,1778850639000,-2268.02684139,0.00014749,2]
[422340922,1778850639000,-231.50831789,0.00014789,3]
[422340917,1778850639000,-467.7,0.00014788,2]